[Event "Condigne Dutch Open 2018"]
[Site "Dieren"]
[Date "2018.07.26"]
[Round "3"]
[White "Viani Antonio Dcunha"]
[Black "Sparenberg, Erik"]
[Result "0-1"]
[ECO "E63"]
[WhiteElo "2404"]
[BlackElo "2173"]
[Annotator "NA"]
[PlyCount "166"]
[EventDate "2018.07.24"]
[EventType "swiss"]
[EventCountry "NED"]
[SourceTitle "playchess.com"]
[Source "ChessBase"]
[SourceQuality "1"]
[TimeControl "40/5400+30:1800+30"]

1. c4 {[%emt 0:00:00]} Nf6 {[%emt 0:00:07]} 2. d4 {[%emt 0:00:12]} g6 {[%emt 0:00:06]} 3. Nc3 {[%emt 0:00:10]} Bg7 {[%emt 0:00:04]} 4. Nf3 {[%emt 0:00:12]} O-O {[%emt 0:00:12]} 5. g3 {[%emt 0:00:24]} d6 {[%emt 0:00:12]} 6. Bg2 {[%emt 0:00:21]} Nc6 {[%emt 0:01:28]} 7. O-O {[%emt 0:02:40]} a6 {[%emt 0:02:07]} 8. d5 {[%emt 0:04:41]} Na5 {[%emt 0:02:42]} 9. b3 {[%emt 0:00:18]} c5 {[%emt 0:04:42]} 10. dxc6 {[%emt 0:02:15]} bxc6 {[%emt 0:15:33]} 11. Bb2 {[%emt 0:25:29]} Rb8 {[%emt 0:06:09]} 12. Qd2 {[%emt 0:03:10]} c5 {[%emt 0:16:02]} 13. Rac1 {[%emt 0:14:07]} Nc6 {[%emt 0:07:01]} 14. h3 {[%emt 0:04:45]} Bb7 {[%emt 0:03:39]} 15. Rcd1 {[%emt 0:07:37]} Ba8 {[%emt 0:06:49]} 16. Qc2 {[%emt 0:06:03]} Qd7 {[%emt 0:02:31]} 17. Rd2 {[%emt 0:01:28]} Qb7 {[%emt 0:05:44]} 18. Qb1 {[%emt 0:06:02]} Rfe8 {[%emt 0:03:40]} 19. Qa1 {[%emt 0:04:19]} Bh6 {[%emt 0:08:56]} 20. e3 {[%emt 0:01:04]} Ne5 {[%emt 0:02:27]} 21. Nd5 {[%emt 0:01:32]} Nxf3+ {[%emt 0:01:45]} 22. Bxf3 {[%emt 0:00:08]} Nxd5 {[%emt 0:00:10]} 23. Bxd5 {[%emt 0:01:39]} Qd7 {[%emt 0:01:05]} 24. Kh2 {[%emt 0:00:33]} Bxd5 {[%emt 0:02:13]} 25. Rxd5 {[%emt 0:00:07]} Qe6 {[%emt 0:01:04]} 26. Qe1 {[%emt 0:01:34]} Bg7 {[%emt 0:02:39]} 27. Bxg7 {[%emt 0:00:13]} Kxg7 {[%emt 0:00:01]} 28. e4 {[%emt 0:01:00]} a5 {[%emt 0:01:16]} 29. Qxa5 {[%emt 0:00:36]} Qxe4 {[%emt 0:00:29]} 30. Qc3+ {[%emt 0:00:30]} e5 {[%emt 0:01:35]} 31. Rxd6 {[%emt 0:00:13]} Qe2 {[%emt 0:00:54]} 32. Qa1 {[%emt 0:02:11]} Ra8 {[%emt 0:01:10]} 33. a4 {[%emt 0:03:01]} Rab8 {[%emt 0:00:13]} 34. Rd5 {[%emt 0:04:09]} Rxb3 {[%emt 0:00:14]} 35. Rxc5 {[%emt 0:00:21]} Rb2 {[%emt 0:02:04]} 36. a5 {[%emt 0:00:49]} Rd8 {[%emt 0:00:44]} 37. Kg1 {[%emt 0:01:57]} Rdd2 {[%emt 0:00:14]} 38. a6 {[%emt 0:01:58]} Qf3 {[%emt 0:00:39]} 39. Qxb2 {[%emt 0:01:00]} Rxb2 {[%emt 0:00:09]} 40. Ra5 {[%emt 0:00:25]} Qc3 {[%emt 0:30:58]} 41. Raa1 {[%emt 0:01:53]} Rb8 {[%emt 0:00:00]} 42. a7 {[%emt 0:04:23]} Ra8 {[%emt 0:00:00]} 43. Rfc1 {[%emt 0:00:08]} Qb2 {[%emt 0:00:00]} 44. Re1 {[%emt 0:03:33]} Qd4 {[%emt 0:00:00]} 45. Ra5 {[%emt 0:00:27]} Rxa7 {[%emt 0:00:00]} 46. Raxe5 {[%emt 0:00:10]} Ra2 {[%emt 0:00:00]} 47. R5e3 {[%emt 0:00:19]} Qxc4 {[%emt 0:00:00]} 48. h4 {[%emt 0:00:25]} Qd5 {[%emt 0:00:00]} 49. Rf1 {[%emt 0:00:59]} h6 {[%emt 0:00:00]} 50. Rfe1 {[%emt 0:02:02]} Rd2 {[%emt 0:00:00]} 51. Re4 {[%emt 0:01:10]} Rd1 {[%emt 0:00:00]} 52. R4e3 {[%emt 0:00:17]} Rxe1+ {[%emt 0:00:00]} 53. Rxe1 {[%emt 0:00:06]} f5 {[%emt 0:00:00]} 54. Re7+ {[%emt 0:03:29]} Kf6 {[%emt 0:00:00]} 55. Re8 {[%emt 0:00:08]} Qc5 {[%emt 0:00:00]} 56. Re3 {[%emt 0:00:46]} Qc1+ {[%emt 0:00:00]} 57. Kg2 {[%emt 0:01:29]} Qd1 {[%emt 0:00:00]} 58. Ra3 {[%emt 0:03:16]} Qd5+ {[%emt 0:00:00]} 59. Kh2 {[%emt 0:00:08]} Qd4 {[%emt 0:00:00]} 60. Kg2 {[%emt 0:00:34]} Qe4+ {[%emt 0:00:00]} 61. Kh2 {[%emt 0:01:09]} f4 {[%emt 0:00:00]} 62. Rb3 {[%emt 0:01:35]} fxg3+ {[%emt 0:00:44]} 63. Kxg3 {[%emt 0:00:08]} Qe5+ {[%emt 0:00:54]} 64. Kg2 {[%emt 0:00:25]} Qd5+ {[%emt 0:00:44]} 65. Rf3+ {[%emt 0:00:06]} Kg7 {[%emt 0:02:04]} 66. Kg3 {[%emt 0:00:06]} Qe5+ {[%emt 0:00:11]} 67. Kg2 {[%emt 0:01:32]} h5 {[%emt 0:00:26]} 68. Rh3 {[%emt 0:01:43]} Qf5 {[%emt 0:01:06]} 69. f3 {[%emt 0:01:00]} Qc2+ {[%emt 0:00:33]} 70. Kg3 {[%emt 0:00:31]} Qc7+ {[%emt 0:00:25]} 71. Kg2 {[%emt 0:00:10]} Qf4 {[%emt 0:00:27]} 72. Rh1 {[%emt 0:00:08]} Kf6 {[%emt 0:00:09]} 73. Kf2 {[%emt 0:00:05]} Kf5 {[%emt 0:00:46]} 74. Kg2 {[%emt 0:00:14]} Qd6 {[%emt 0:00:52]} 75. Ra1 {[%emt 0:00:41]} Qd2+ {[%emt 0:00:35]} 76. Kh3 {[%emt 0:01:21]} Kf4 {[%emt 0:01:45]} 77. Rg1 {[%emt 0:04:47]} Qd7+ {[%emt 0:00:45]} 78. Kh2 {[%emt 0:00:10]} Qe6 {[%emt 0:01:10]} 79. Rg3 {[%emt 0:00:14]} Qe2+ {[%emt 0:00:48]} 80. Rg2 {[%emt 0:00:10]} Kxf3 {[%emt 0:00:56]} 81. Rxe2 {[%emt 0:00:27]} Kxe2 {[%emt 0:00:01]} 82. Kg2 {[%emt 0:00:15]} Ke3 {[%emt 0:00:09]} 83. Kg3 {[%emt 0:00:09]} Ke4 {[%emt 0:00:03]} 0-1

[Event "Condigne Dutch Open 2018"]
[Site "Dieren"]
[Date "2018.07.26"]
[Round "3"]
[White "Miedema, David"]
[Black "Pruijssers, Roeland"]
[Result "1/2-1/2"]
[ECO "C95"]
[WhiteElo "2370"]
[BlackElo "2501"]
[Annotator "ChessBase"]
[PlyCount "193"]
[EventDate "2018.07.24"]
[EventType "swiss"]
[EventCountry "NED"]
[SourceTitle "playchess.com"]
[Source "ChessBase"]
[SourceQuality "1"]
[TimeControl "40/5400+30:1800+30"]

1. e4 {[%emt 0:01:23]} e5 {[%emt 0:05:02]} 2. Nf3 {[%emt 0:00:26]} Nc6 {[%emt 0:00:08]} 3. Bb5 {[%emt 0:00:05]} a6 {[%emt 0:00:39]} 4. Ba4 {[%emt 0:00:04]} Nf6 {[%emt 0:00:06]} 5. O-O {[%emt 0:00:05]} Be7 {[%emt 0:00:32]} 6. Re1 {[%emt 0:00:07]} b5 {[%emt 0:00:05]} 7. Bb3 {[%emt 0:00:03]} d6 {[%emt 0:00:06]} 8. c3 {[%emt 0:00:03]} O-O {[%emt 0:00:07]} 9. h3 {[%emt 0:00:03]} Nb8 {[%emt 0:01:25]} 10. d4 {[%emt 0:00:06]} Nbd7 {[%emt 0:00:04]} 11. c4 {[%emt 0:00:10]} c6 {[%emt 0:00:55]} 12. a3 {[%emt 0:00:19]} bxc4 {[%emt 0:01:11]} 13. Bxc4 {[%emt 0:00:33]} Nxe4 {[%emt 0:00:06]} 14. dxe5 {[%emt 0:00:04]} d5 {[%emt 0:00:09]} 15. Ba2 {[%emt 0:00:05]} Qc7 {[%emt 0:12:45]} 16. Nc3 {[%emt 0:21:53]} Ndc5 {[%emt 0:05:54]} 17. Nd4 {[%emt 0:11:55]} Bd7 {[%emt 0:17:20]} 18. f3 {[%emt 0:12:03]} Nxc3 {[%emt 0:16:21]} 19. bxc3 {[%emt 0:01:08]} Bh4 {[%emt 0:10:19]} 20. Re2 {[%emt 0:00:18]} Rae8 {[%emt 0:01:38]} 21. f4 {[%emt 0:04:53]} f6 {[%emt 0:00:25]} 22. Nf3 {[%emt 0:01:08]} Bg3 {[%emt 0:00:16]} 23. Be3 {[%emt 0:01:16]} Ne4 {[%emt 0:12:22]} 24. Bxd5+ {[%emt 0:00:41]} cxd5 {[%emt 0:00:01]} 25. Qxd5+ {[%emt 0:00:06]} Kh8 {[%emt 0:00:09]} 26. Qxe4 {[%emt 0:00:04]} Qxc3 {[%emt 0:00:04]} 27. Bd4 {[%emt 0:01:45]} Qc6 {[%emt 0:01:58]} 28. Qxc6 {[%emt 0:11:24]} Bxc6 {[%emt 0:00:02]} 29. Bc5 {[%emt 0:00:05]} Bxf3 {[%emt 0:02:44]} 30. gxf3 {[%emt 0:00:23]} Rg8 {[%emt 0:02:26]} 31. e6 {[%emt 0:04:40]} Bxf4 {[%emt 0:00:06]} 32. Rd1 {[%emt 0:03:25]} Rc8 {[%emt 0:00:55]} 33. e7 {[%emt 0:00:31]} Rge8 {[%emt 0:00:18]} 34. Bb4 {[%emt 0:10:34]} Kg8 {[%emt 0:00:08]} 35. Re4 {[%emt 0:02:22]} Bc7 {[%emt 0:00:30]} 36. Kg2 {[%emt 0:07:18]} Kf7 {[%emt 0:01:57]} 37. a4 {[%emt 0:02:45]} a5 {[%emt 0:00:19]} 38. Bc5 {[%emt 0:03:11]} Be5 {[%emt 0:00:32]} 39. Bb6 {[%emt 0:00:59]} Rc2+ {[%emt 0:04:01]} 40. Kf1 {[%emt 0:00:20]} Bc7 {[%emt 0:33:42]} 41. Bxc7 {[%emt 0:31:14]} Rxc7 {[%emt 0:00:07]} 42. Rd5 {[%emt 0:00:01]} Ra7 {[%emt 0:00:06]} 43. Kf2 {[%emt 0:00:00]} Rexe7 {[%emt 0:00:00]} 44. Rxe7+ {[%emt 0:00:00]} Kxe7 {[%emt 0:00:00]} 45. Rh5 {[%emt 0:00:00]} h6 {[%emt 0:00:00]} 46. h4 {[%emt 0:00:00]} Kf7 {[%emt 0:00:00]} 47. Rb5 {[%emt 0:00:00]} g6 {[%emt 0:00:00]} 48. Kg3 {[%emt 0:00:00]} Ra6 {[%emt 0:00:00]} 49. Kg4 {[%emt 0:00:00]} Ke6 {[%emt 0:00:00]} 50. Rc5 {[%emt 0:00:00]} f5+ {[%emt 0:00:00]} 51. Kg3 {[%emt 0:00:00]} Kf6 {[%emt 0:00:00]} 52. f4 {[%emt 0:00:00]} g5 {[%emt 0:00:00]} 53. hxg5+ {[%emt 0:00:00]} hxg5 {[%emt 0:00:00]} 54. fxg5+ {[%emt 0:00:00]} Kxg5 {[%emt 0:00:00]} 55. Rb5 {[%emt 0:00:00]} Rc6 {[%emt 0:00:00]} 56. Rxa5 {[%emt 0:00:00]} Rc3+ {[%emt 0:00:00]} 57. Kf2 {[%emt 0:00:00]} Kg4 {[%emt 0:00:00]} 58. Ra8 {[%emt 0:00:00]} Rc2+ {[%emt 0:00:00]} 59. Kg1 {[%emt 0:00:00]} Kg3 {[%emt 0:00:00]} 60. Rg8+ {[%emt 0:00:00]} Kf3 {[%emt 0:00:00]} 61. Rf8 {[%emt 0:00:00]} f4 {[%emt 0:00:00]} 62. a5 {[%emt 0:00:00]} Rg2+ {[%emt 0:00:00]} 63. Kf1 {[%emt 0:00:00]} Ra2 {[%emt 0:00:00]} 64. Kg1 {[%emt 0:00:00]} Rxa5 {[%emt 0:00:00]} 65. Rf7 {[%emt 0:00:00]} Ra8 {[%emt 0:00:00]} 66. Rf6 {[%emt 0:00:00]} Ra1+ {[%emt 0:00:00]} 67. Kh2 {[%emt 0:00:00]} Rf1 {[%emt 0:00:00]} 68. Ra6 {[%emt 0:00:00]} Re1 {[%emt 0:00:00]} 69. Rf6 {[%emt 0:00:00]} Re4 {[%emt 0:00:00]} 70. Kg1 {[%emt 0:00:00]} Rb4 {[%emt 0:00:00]} 71. Rf8 {[%emt 0:00:00]} Rb1+ {[%emt 0:00:00]} 72. Kh2 {[%emt 0:00:00]} Rd1 {[%emt 0:00:00]} 73. Rf7 {[%emt 0:00:00]} Rf1 {[%emt 0:00:00]} 74. Ra7 {[%emt 0:00:00]} Re1 {[%emt 0:00:00]} 75. Rf7 {[%emt 0:00:00]} Re4 {[%emt 0:00:00]} 76. Kg1 {[%emt 0:00:00]} Ke2 {[%emt 0:00:00]} 77. Kg2 {[%emt 0:00:00]} Ke3 {[%emt 0:00:00]} 78. Rf8 {[%emt 0:00:00]} Re7 {[%emt 0:00:00]} 79. Rf6 {[%emt 0:00:00]} Rg7+ {[%emt 0:00:00]} 80. Kf1 {[%emt 0:00:00]} Rc7 {[%emt 0:00:00]} 81. Rf8 {[%emt 0:00:00]} Kf3 {[%emt 0:00:00]} 82. Kg1 {[%emt 0:00:00]} Rc4 {[%emt 0:00:00]} 83. Rf7 {[%emt 0:00:00]} Rc8 {[%emt 0:00:00]} 84. Rf6 {[%emt 0:00:00]} Rg8+ {[%emt 0:01:06]} 85. Kf1 {[%emt 0:00:00]} Kg3 {[%emt 0:00:02]} 86. Kg1 {[%emt 0:00:00]} Rg7 {[%emt 0:01:49]} 87. Rf8 {[%emt 0:00:00]} Rd7 {[%emt 0:00:07]} 88. Rg8+ {[%emt 0:00:00]} Kf3 {[%emt 0:00:04]} 89. Rf8 {[%emt 0:00:00]} Rd1+ {[%emt 0:01:24]} 90. Kh2 {[%emt 0:00:00]} Rd2+ {[%emt 0:00:04]} 91. Kg1 {[%emt 0:00:00]} Ra2 {[%emt 0:00:32]} 92. Rf7 {[%emt 0:00:00]} Rg2+ {[%emt 0:00:58]} 93. Kf1 {[%emt 0:00:00]} Rg5 {[%emt 0:00:04]} 94. Rf8 {[%emt 0:00:00]} Kg3 {[%emt 0:00:07]} 95. Kg1 {[%emt 0:00:00]} Rg4 {[%emt 0:00:21]} 96. Rf7 {[%emt 0:00:00]} Rg8 {[%emt 0:00:11]} 97. Rf6 {[%emt 0:00:00]} 1/2-1/2

[Event "Condigne Dutch Open 2018"]
[Site "Dieren"]
[Date "2018.07.26"]
[Round "3"]
[White "Geurink, Jasper"]
[Black "Bruil, Rembrandt"]
[Result "1/2-1/2"]
[ECO "B30"]
[WhiteElo "2348"]
[BlackElo "2126"]
[Annotator "NA"]
[PlyCount "87"]
[EventDate "2018.07.24"]
[EventType "swiss"]
[EventCountry "NED"]
[SourceTitle "playchess.com"]
[Source "ChessBase"]
[SourceQuality "1"]
[TimeControl "40/5400+30:1800+30"]

1. e4 {[%emt 0:00:00]} c5 {[%emt 0:00:05]} 2. Nf3 {[%emt 0:00:00]} Nc6 {[%emt 0:00:04]} 3. Bb5 {[%emt 0:00:00]} Nf6 {[%emt 0:00:13]} 4. Bxc6 {[%emt 0:00:20]} dxc6 {[%emt 0:00:09]} 5. d3 {[%emt 0:01:11]} Qc7 {[%emt 0:00:38]} 6. Nbd2 {[%emt 0:01:11]} e5 {[%emt 0:03:11]} 7. Nc4 {[%emt 0:00:40]} Bd6 {[%emt 0:00:43]} 8. h3 {[%emt 0:01:06]} O-O {[%emt 0:00:57]} 9. O-O {[%emt 0:00:27]} Re8 {[%emt 0:01:10]} 10. a4 {[%emt 0:01:49]} Nd7 {[%emt 0:05:26]} 11. Nxd6 {[%emt 0:03:20]} Qxd6 {[%emt 0:00:25]} 12. Nd2 {[%emt 0:01:59]} Qg6 {[%emt 0:11:11]} 13. Qf3 {[%emt 0:05:11]} Nf8 {[%emt 0:08:28]} 14. Qg3 {[%emt 0:06:35]} Qxg3 {[%emt 0:03:13]} 15. fxg3 {[%emt 0:01:00]} Ne6 {[%emt 0:04:34]} 16. Nc4 {[%emt 0:06:18]} Nd4 {[%emt 0:08:05]} 17. Rf2 {[%emt 0:02:37]} f6 {[%emt 0:01:08]} 18. Be3 {[%emt 0:01:10]} Be6 {[%emt 0:07:02]} 19. b3 {[%emt 0:02:15]} Reb8 {[%emt 0:06:38]} 20. g4 {[%emt 0:03:23]} Bxc4 {[%emt 0:12:53]} 21. bxc4 {[%emt 0:02:29]} b5 {[%emt 0:00:55]} 22. axb5 {[%emt 0:09:55]} cxb5 {[%emt 0:00:06]} 23. cxb5 {[%emt 0:00:27]} Rxb5 {[%emt 0:00:42]} 24. Ra6 {[%emt 0:05:42]} Rb6 {[%emt 0:05:55]} 25. Ra5 {[%emt 0:00:25]} Rc6 {[%emt 0:00:05]} 26. c4 {[%emt 0:05:05]} Ne6 {[%emt 0:04:49]} 27. Rb2 {[%emt 0:02:25]} a6 {[%emt 0:01:28]} 28. Kf2 {[%emt 0:00:21]} Rd8 {[%emt 0:01:13]} 29. Ke2 {[%emt 0:00:07]} Rd7 {[%emt 0:00:47]} 30. Rb8+ {[%emt 0:00:43]} Kf7 {[%emt 0:00:04]} 31. Ra3 {[%emt 0:00:45]} Ke7 {[%emt 0:02:13]} 32. Kd2 {[%emt 0:01:26]} Rd8 {[%emt 0:01:55]} 33. Rb7+ {[%emt 0:06:24]} Rd7 {[%emt 0:00:14]} 34. Rb2 {[%emt 0:00:36]} Rdd6 {[%emt 0:04:41]} 35. g3 {[%emt 0:01:19]} Rb6 {[%emt 0:00:44]} 36. Rab3 {[%emt 0:00:31]} Rxb3 {[%emt 0:01:49]} 37. Rxb3 {[%emt 0:00:06]} Rc6 {[%emt 0:00:07]} 38. Rb7+ {[%emt 0:01:28]} Kd6 {[%emt 0:00:14]} 39. h4 {[%emt 0:00:53]} Rc7 {[%emt 0:02:33]} 40. Rb6+ {[%emt 0:01:06]} Rc6 {[%emt 0:30:08]} 41. Rb1 {[%emt 0:32:06]} h6 {[%emt 0:02:43]} 42. Rb7 {[%emt 0:00:33]} Rc7 {[%emt 0:00:13]} 43. Rb6+ {[%emt 0:00:33]} Rc6 {[%emt 0:00:08]} 44. Rb7 {[%emt 0:00:04]} 1/2-1/2

[Event "Condigne Dutch Open 2018"]
[Site "Dieren"]
[Date "2018.07.26"]
[Round "3"]
[White "Anand Nadar"]
[Black "Beerdsen, Thomas"]
[Result "1/2-1/2"]
[ECO "A40"]
[WhiteElo "2346"]
[BlackElo "2469"]
[Annotator "ChessBase"]
[PlyCount "117"]
[EventDate "2018.07.24"]
[EventType "swiss"]
[EventCountry "NED"]
[SourceTitle "playchess.com"]
[Source "ChessBase"]
[SourceQuality "1"]
[TimeControl "40/5400+30:1800+30"]

1. d4 {[%emt 0:01:27]} e6 {[%emt 0:00:05]} 2. c4 {[%emt 0:00:06]} b6 {[%emt 0:00:04]} 3. e4 {[%emt 0:00:09]} Bb7 {[%emt 0:00:04]} 4. Bd3 {[%emt 0:00:07]} Nc6 {[%emt 0:00:07]} 5. Ne2 {[%emt 0:00:59]} g6 {[%emt 0:00:10]} 6. Nbc3 {[%emt 0:00:57]} Bg7 {[%emt 0:00:06]} 7. Be3 {[%emt 0:00:04]} Nge7 {[%emt 0:00:05]} 8. Qd2 {[%emt 0:00:06]} d5 {[%emt 0:00:04]} 9. cxd5 {[%emt 0:00:54]} exd5 {[%emt 0:00:42]} 10. e5 {[%emt 0:00:58]} f6 {[%emt 0:00:13]} 11. f4 {[%emt 0:05:57]} O-O {[%emt 0:02:52]} 12. O-O {[%emt 0:00:07]} Nb4 {[%emt 0:00:04]} 13. Rac1 {[%emt 0:08:44]} Nxd3 {[%emt 0:04:40]} 14. Qxd3 {[%emt 0:00:20]} Nf5 {[%emt 0:11:41]} 15. Nd1 {[%emt 0:15:39]} a5 {[%emt 0:04:27]} 16. Rf3 {[%emt 0:13:29]} Re8 {[%emt 0:10:32]} 17. Ng3 {[%emt 0:13:51]} Nxg3 {[%emt 0:10:53]} 18. Rxg3 {[%emt 0:00:58]} c5 {[%emt 0:00:35]} 19. Nf2 {[%emt 0:20:45]} Bc8 {[%emt 0:05:09]} 20. Ng4 {[%emt 0:02:30]} Bxg4 {[%emt 0:03:10]} 21. Rxg4 {[%emt 0:00:02]} Qd7 {[%emt 0:00:42]} 22. h3 {[%emt 0:01:16]} cxd4 {[%emt 0:01:34]} 23. Bxd4 {[%emt 0:01:12]} fxe5 {[%emt 0:00:07]} 24. fxe5 {[%emt 0:01:36]} Re6 {[%emt 0:02:06]} 25. Qc3 {[%emt 0:04:46]} Rae8 {[%emt 0:01:16]} 26. Qc7 {[%emt 0:00:02]} Qxc7 {[%emt 0:01:05]} 27. Rxc7 {[%emt 0:00:01]} Bxe5 {[%emt 0:00:08]} 28. Bxe5 {[%emt 0:00:31]} Rxe5 {[%emt 0:00:05]} 29. Rf4 {[%emt 0:04:08]} Re1+ {[%emt 0:03:20]} 30. Kh2 {[%emt 0:00:53]} R1e7 {[%emt 0:01:29]} 31. Rxe7 {[%emt 0:00:04]} Rxe7 {[%emt 0:00:08]} 32. Rf6 {[%emt 0:00:01]} b5 {[%emt 0:03:43]} 33. Rb6 {[%emt 0:00:02]} b4 {[%emt 0:00:13]} 34. Rb5 {[%emt 0:00:02]} Rd7 {[%emt 0:00:06]} 35. Rxa5 {[%emt 0:00:12]} d4 {[%emt 0:00:04]} 36. Rc5 {[%emt 0:00:06]} d3 {[%emt 0:00:04]} 37. Rc1 {[%emt 0:00:08]} Ra7 {[%emt 0:00:06]} 38. a3 {[%emt 0:02:01]} bxa3 {[%emt 0:00:10]} 39. bxa3 {[%emt 0:00:03]} Rxa3 {[%emt 0:00:06]} 40. Kg1 {[%emt 0:01:27]} Kf7 {[%emt 0:31:30]} 41. Kf2 {[%emt 0:33:17]} Kf6 {[%emt 0:08:47]} 42. Rc5 {[%emt 0:00:00]} Ke6 {[%emt 0:00:00]} 43. Ke3 {[%emt 0:00:00]} h5 {[%emt 0:00:00]} 44. Rg5 {[%emt 0:00:00]} Kf6 {[%emt 0:00:00]} 45. Rd5 {[%emt 0:00:00]} Ra2 {[%emt 0:00:00]} 46. Rxd3 {[%emt 0:00:00]} Rxg2 {[%emt 0:00:00]} 47. Kf3 {[%emt 0:00:01]} Rg5 {[%emt 0:00:00]} 48. Rd4 {[%emt 0:01:09]} Rg1 {[%emt 0:00:00]} 49. Rf4+ {[%emt 0:01:04]} Ke5 {[%emt 0:00:00]} 50. Re4+ {[%emt 0:00:10]} Kd5 {[%emt 0:00:00]} 51. Ra4 {[%emt 0:01:18]} Rf1+ {[%emt 0:00:00]} 52. Kg3 {[%emt 0:00:18]} Ke5 {[%emt 0:00:00]} 53. Ra5+ {[%emt 0:00:40]} Kf6 {[%emt 0:00:00]} 54. Ra6+ {[%emt 0:00:19]} Kg5 {[%emt 0:00:00]} 55. Ra5+ {[%emt 0:00:27]} Rf5 {[%emt 0:00:00]} 56. h4+ {[%emt 0:00:51]} Kf6 {[%emt 0:00:00]} 57. Ra6+ {[%emt 0:00:12]} Kg7 {[%emt 0:00:00]} 58. Ra7+ {[%emt 0:00:05]} Rf7 {[%emt 0:00:00]} 59. Ra6 {[%emt 0:00:13]} 1/2-1/2

[Event "Condigne Dutch Open 2018"]
[Site "Dieren"]
[Date "2018.07.26"]
[Round "3"]
[White "Maris, Ivo"]
[Black "Loginov, Valery A"]
[Result "0-1"]
[ECO "E32"]
[WhiteElo "2342"]
[BlackElo "2493"]
[Annotator "RC"]
[PlyCount "72"]
[EventDate "2018.07.24"]
[EventType "swiss"]
[EventCountry "NED"]
[SourceTitle "playchess.com"]
[Source "ChessBase"]
[SourceQuality "1"]
[TimeControl "40/5400+30:1800+30"]

1. d4 {[%emt 0:00:06]} Nf6 {[%emt 0:03:39]} 2. c4 {[%emt 0:00:20]} e6 {[%emt 0:00:07]} 3. Nc3 {[%emt 0:00:25]} Bb4 {[%emt 0:00:06]} 4. Qc2 {[%emt 0:00:26]} O-O {[%emt 0:00:44]} 5. e4 {[%emt 0:00:34]} d5 {[%emt 0:00:15]} 6. e5 {[%emt 0:00:18]} Ne4 {[%emt 0:00:09]} 7. Bd3 {[%emt 0:00:28]} c5 {[%emt 0:00:11]} 8. Nf3 {[%emt 0:00:33]} cxd4 {[%emt 0:04:07]} 9. Nxd4 {[%emt 0:01:16]} Nd7 {[%emt 0:02:09]} 10. Bf4 {[%emt 0:00:58]} Ndc5 {[%emt 0:02:22]} 11. O-O {[%emt 0:02:47]} Bxc3 {[%emt 0:04:19]} 12. bxc3 {[%emt 0:03:53]} Bd7 {[%emt 0:03:18]} 13. Nb3 {[%emt 0:19:13]} Nxd3 {[%emt 0:05:34]} 14. Qxd3 {[%emt 0:00:59]} Rc8 {[%emt 0:00:17]} 15. f3 {[%emt 0:08:40]} Nc5 {[%emt 0:15:58]} 16. Nxc5 {[%emt 0:23:39]} Rxc5 {[%emt 0:00:43]} 17. cxd5 {[%emt 0:01:08]} Bb5 {[%emt 0:01:49]} 18. Qe3 {[%emt 0:00:39]} Rxd5 {[%emt 0:00:25]} 19. Rfc1 {[%emt 0:00:30]} a6 {[%emt 0:01:03]} 20. Bg5 {[%emt 0:00:32]} Qd7 {[%emt 0:06:54]} 21. Qf4 {[%emt 0:02:49]} Rc8 {[%emt 0:04:31]} 22. c4 {[%emt 0:03:33]} Rd4 {[%emt 0:00:26]} 23. Qg3 {[%emt 0:00:05]} Rcxc4 {[%emt 0:01:44]} 24. h4 {[%emt 0:01:28]} Kf8 {[%emt 0:10:05]} 25. h5 {[%emt 0:01:19]} h6 {[%emt 0:01:19]} 26. Bf6 {[%emt 0:02:52]} gxf6 {[%emt 0:00:11]} 27. exf6 {[%emt 0:00:07]} Qd6 {[%emt 0:00:09]} 28. Qg7+ {[%emt 0:00:13]} Ke8 {[%emt 0:00:07]} 29. Qg8+ {[%emt 0:03:38]} Qf8 {[%emt 0:02:16]} 30. Qg3 {[%emt 0:00:02]} Rd8 {[%emt 0:06:34]} 31. Kh1 {[%emt 0:02:50]} Rc5 {[%emt 0:07:07]} 32. a4 {[%emt 0:01:20]} Rxh5+ {[%emt 0:01:16]} 33. Kg1 {[%emt 0:00:01]} Bc6 {[%emt 0:00:20]} 34. Ra2 {[%emt 0:03:30]} Rg5 {[%emt 0:00:36]} 35. Qh2 {[%emt 0:01:09]} Rg6 {[%emt 0:01:02]} 36. Re2 {[%emt 0:01:18]} Qd6 {[%emt 0:01:36]} 0-1

[Event "Condigne Dutch Open 2018"]
[Site "Dieren"]
[Date "2018.07.26"]
[Round "3"]
[White "Saravanan, V.."]
[Black "Zwirs, Jasper"]
[Result "1-0"]
[ECO "D30"]
[WhiteElo "2326"]
[BlackElo "2124"]
[Annotator "NA"]
[PlyCount "53"]
[EventDate "2018.07.24"]
[EventType "swiss"]
[EventCountry "NED"]
[SourceTitle "playchess.com"]
[Source "ChessBase"]
[SourceQuality "1"]
[TimeControl "40/5400+30:1800+30"]

1. Nf3 {[%emt 0:00:00]} d5 {[%emt 0:00:04]} 2. d4 {[%emt 0:00:00]} Nf6 {[%emt 0:00:06]} 3. c4 {[%emt 0:00:00]} c6 {[%emt 0:00:03]} 4. e3 {[%emt 0:00:00]} e6 {[%emt 0:00:06]} 5. b3 {[%emt 0:02:40]} Bb4+ {[%emt 0:04:08]} 6. Nbd2 {[%emt 0:00:07]} b6 {[%emt 0:00:05]} 7. Bd3 {[%emt 0:01:08]} Bb7 {[%emt 0:04:31]} 8. O-O {[%emt 0:00:32]} Nbd7 {[%emt 0:00:29]} 9. Bb2 {[%emt 0:01:37]} O-O {[%emt 0:00:16]} 10. a3 {[%emt 0:01:56]} Bd6 {[%emt 0:06:37]} 11. Ne5 {[%emt 0:02:18]} c5 {[%emt 0:00:56]} 12. f4 {[%emt 0:04:19]} Ne4 {[%emt 0:04:56]} 13. cxd5 {[%emt 0:04:10]} exd5 {[%emt 0:00:18]} 14. Nxe4 {[%emt 0:11:24]} dxe4 {[%emt 0:01:56]} 15. Bc4 {[%emt 0:00:46]} Nf6 {[%emt 0:04:57]} 16. Qe2 {[%emt 0:00:15]} cxd4 {[%emt 0:08:48]} 17. Bxd4 {[%emt 0:00:08]} Rc8 {[%emt 0:18:01]} 18. Rfd1 {[%emt 0:06:06]} Qc7 {[%emt 0:01:30]} 19. Ng4 {[%emt 0:04:54]} Be7 {[%emt 0:20:41]} 20. Nxf6+ {[%emt 0:05:07]} Bxf6 {[%emt 0:00:36]} 21. Bxf6 {[%emt 0:00:06]} gxf6 {[%emt 0:00:03]} 22. Qg4+ {[%emt 0:00:50]} Kh8 {[%emt 0:00:05]} 23. Qf5 {[%emt 0:03:13]} Qc6 {[%emt 0:03:37]} 24. Bd5 {[%emt 0:02:21]} Qc7 {[%emt 0:02:19]} 25. Qxf6+ {[%emt 0:17:58]} Kg8 {[%emt 0:00:04]} 26. Bc4 {[%emt 0:05:18]} Rfd8 {[%emt 0:02:13]} 27. Bxf7+ {[%emt 0:01:10]} 1-0